fUST/lending_fUST_20250623
["ID","MTS","AMOUNT","RATE_DAILY","PERIOD"]
[367080037,1750651849990,-500.0,0.00021944,2]
[367080039,1750651850000,-599.0,0.00021944,2]
[367080041,1750651850009,-151.14697884,0.00021944,2]
[367080043,1750651850018,-500.0,0.00021944,2]
[367080045,1750651850027,-151.0,0.00021972,2]
[367080047,1750651850038,-151.0,0.00021972,2]
[367080049,1750651850046,-500.0,0.00021972,2]
[367080051,1750651850057,-500.0,0.00021972,2]
[367080053,1750651850068,-500.0,0.00021972,2]
[367080055,1750651850077,-164.70744157,0.00021972,2]
[367080057,1750651850086,-500.0,0.00021972,2]
[367080059,1750651850095,-500.0,0.00021972,2]
[367080061,1750651850105,-500.0,0.00021972,2]
[367080063,1750651850114,-151.0,0.00021972,2]
[367080064,1750651850123,-252.68033167,0.00021972,2]
[367080066,1750651850132,-604.0,0.00021972,2]
[367080069,1750651850142,-500.0,0.00021972,2]
[367080070,1750651850151,-500.0,0.00021972,2]
[367080072,1750651850161,-198.0,0.00021972,2]
[367080074,1750651850170,-500.0,0.00021972,2]
[367080076,1750651850179,-500.0,0.00021972,2]
[367080079,1750651850189,-500.0,0.00021972,2]
[367080081,1750651850199,-151.0,0.00021972,2]
[367080082,1750651850208,-500.0,0.00021972,2]
[367080084,1750651850217,-500.0,0.00021972,2]
[367080086,1750651850226,-500.0,0.00021972,2]
[367080088,1750651850235,-500.0,0.00021972,2]
[367080090,1750651850245,-500.0,0.00021972,2]
[367080092,1750651850262,-500.0,0.00021972,2]
[367080094,1750651850271,-245.00950483,0.00021972,2]
[367080096,1750651850281,-151.0,0.00021972,2]
[367080098,1750651850290,-500.0,0.00021972,2]
[367080100,1750651850300,-173.1544562,0.00021972,2]
[367080102,1750651850309,-255.00261681,0.00021972,2]
[367080104,1750651850319,-599.0,0.00021972,2]
[367080107,1750651850328,-500.0,0.00021972,2]
[367080108,1750651850337,-500.0,0.00021973,2]
[367080110,1750651850346,-500.72984294,0.00021973,2]
[367080112,1750651850355,-598.01965592,0.00021973,2]
[367080114,1750651850365,-500.44290652,0.00021973,2]
[367080116,1750651850374,-500.32103874,0.00021973,2]
[367080118,1750651850382,-513.10036916,0.00021973,2]
[367080120,1750651850392,-623.29573898,0.00021973,2]
[367080122,1750651850401,-162.18022338,0.00021973,2]
[367080124,1750651850411,-500.0,0.00021973,2]
[367080126,1750651850420,-500.0,0.00021973,2]
[367080128,1750651850429,-500.0,0.00021973,2]
[367080130,1750651850438,-500.0,0.00021973,2]
[367080132,1750651850447,-630.43432541,0.00021973,2]
[367080134,1750651850456,-500.0,0.00021973,2]
[367080136,1750651850465,-500.0,0.00021973,2]
[367080138,1750651850474,-618.77154778,0.00021973,2]
[367080140,1750651850483,-500.0,0.00021973,2]
[367080142,1750651850492,-500.0,0.00021973,2]
[367080144,1750651850501,-203.77211291,0.00021973,2]
[367080146,1750651850511,-500.0,0.00021973,2]
[367080148,1750651850520,-500.0,0.00021973,2]
[367080150,1750651850529,-501.81369713,0.00021973,2]
[367080152,1750651850538,-500.70918547,0.00021973,2]
[367080154,1750651850548,-500.0,0.00021973,2]
[367080156,1750651850557,-500.0,0.00021973,2]
[367080158,1750651850566,-500.0,0.00021973,2]
[367080160,1750651850575,-500.0,0.00021973,2]
[367080162,1750651850585,-500.0,0.00021973,2]
[367080164,1750651850593,-500.0,0.00021973,2]
[367080167,1750651850604,-500.0,0.00021973,2]
[367080168,1750651850613,-500.0,0.00021973,2]
[367080170,1750651850622,-500.0,0.00021973,2]
[367080172,1750651850631,-500.0,0.00021973,2]
[367080174,1750651850640,-500.0,0.00021973,2]
[367080176,1750651850649,-500.0,0.00021973,2]
[367080178,1750651850659,-500.0,0.00021973,2]
[367080180,1750651850668,-500.0,0.00021973,2]
[367080182,1750651850677,-500.0,0.00021973,2]
[367080184,1750651850686,-210.00680306,0.00021973,2]
[367080186,1750651850695,-500.0,0.00021973,2]
[367080188,1750651850704,-344.8429154,0.00021973,2]
[367080190,1750651850714,-500.0,0.00021973,2]
[367080192,1750651850723,-500.0,0.00021973,2]
[367080194,1750651850732,-500.0,0.00021973,2]
[367080196,1750651850741,-500.0,0.00021973,2]
[367080198,1750651850750,-500.0,0.00021973,2]
[367080200,1750651850759,-500.0,0.00021973,2]
[367080202,1750651850769,-506.37154004,0.00021973,2]
[367080204,1750651850778,-500.0,0.00021973,2]
[367080206,1750651850790,-504.37464462,0.00021973,2]
[367080208,1750651850799,-500.0,0.00021973,2]
[367080211,1750651850809,-512.34243807,0.00021973,2]
[367080213,1750651850817,-500.0,0.00021973,2]
[367080215,1750651850826,-500.0,0.00021973,2]
[367080216,1750651850836,-500.0,0.00021973,2]
[367080219,1750651850845,-500.0,0.00021973,2]
[367080221,1750651850854,-500.0,0.00021973,2]
[367080222,1750651850863,-501.3412118,0.00021973,2]
[367080224,1750651850872,-500.0,0.00021973,2]
[367080226,1750651850882,-500.0,0.00021973,2]
[367080228,1750651850891,-500.0,0.00021973,2]
[367080230,1750651850900,-500.0,0.00021973,2]
[367080232,1750651850909,-300.0,0.0002198,2]
[367080234,1750651850918,-708.5591094,0.00021996,2]
[367080236,1750651850927,-296.1687221,0.00021999,2]
[367080238,1750651850936,-151.0,0.00021999,2]
[367080240,1750651850945,-500.0,0.00021999,2]
[367080242,1750651850954,-326.88439245,0.00021999,2]
[367080244,1750651850963,-277.61852583,0.00021999,2]
[367080247,1750651850978,-500.0,0.00021999,2]
[367080249,1750651850988,-500.0,0.00021999,2]
[367080251,1750651850998,-500.0,0.00021999,2]
[367080253,1750651851008,-201.74334969,0.00021999,2]
[367080255,1750651851017,-500.0,0.00021999,2]
[367080257,1750651851026,-500.0,0.00021999,2]
[367080259,1750651851036,-405.49574872,0.00021999,2]
[367080261,1750651851045,-500.0,0.00021999,2]
[367080262,1750651851055,-500.0,0.00021999,2]
[367080264,1750651851066,-259.55586604,0.00021999,2]
[367080267,1750651851075,-500.0,0.00021999,2]
[367080268,1750651851084,-500.0,0.00021999,2]
[367080271,1750651851094,-500.0,0.00021999,2]
[367080273,1750651851104,-500.0,0.00021999,2]
[367080275,1750651851114,-500.0,0.00021999,2]
[367080277,1750651851123,-500.0,0.00021999,2]
[367080278,1750651851132,-151.0,0.00021999,2]
[367080280,1750651851141,-500.0,0.00021999,2]
[367080282,1750651851150,-599.0,0.00021999,2]
[367080284,1750651851160,-500.0,0.00021999,2]
[367080286,1750651851169,-20105.85904945,0.00022,2]
[367080288,1750651851179,-11302.43168048,0.00022,2]
[367080290,1750651851188,-2000.0,0.00022,3]
[367080293,1750651851197,-9239.88,0.00022,7]
[367080295,1750651851207,-386.63703508,0.00022,2]
[367080296,1750651851216,-161.29545787,0.00022,2]
[367080298,1750651851225,-3575.24,0.00022,7]
[367080300,1750651851235,-151.186178,0.00022,7]
[367080302,1750651851244,-123530.88636186,0.00022,2]
[367080305,1750651851254,-151.703439,0.00022,7]
[367080306,1750651851263,-1241.38,0.00022,10]
[367080309,1750651851273,-731.6430826,0.00022,2]
[367080310,1750651851282,-730.4816297,0.00022,2]
[367080312,1750651851291,-151.0,0.00022,7]
[367080314,1750651851300,-151.0,0.00022,7]
[367080316,1750651851309,-412.64024,0.00022,7]
[367080318,1750651851318,-412.64024,0.00022,7]
[367080321,1750651851328,-151.0,0.00022,7]
[367080322,1750651851339,-151.0,0.00022,7]
[367080325,1750651851350,-151.0,0.00022,7]
[367080327,1750651851359,-151.0,0.00022,7]
[367080329,1750651851368,-151.0,0.00022,7]
[367080330,1750651851377,-219.159322,0.00022,7]
[367080332,1750651851387,-151.0,0.00022,7]
[367080334,1750651851396,-151.0,0.00022,7]
[367080336,1750651851405,-151.0,0.00022,7]
[367080338,1750651851414,-213.63163053,0.00022,7]
[367080340,1750651851424,-151.0,0.00022,7]
[367080342,1750651851433,-151.0,0.00022,7]
[367080344,1750651851443,-151.0,0.00022,7]
[367080346,1750651851452,-151.0,0.00022,7]
[367080347,1750651851461,-151.0,0.00022,7]
[367080349,1750651851471,-151.0,0.00022,7]
[367080351,1750651851480,-846.53928378,0.00022,7]
[367080352,1750651851490,-151.0,0.00022,7]
[367080354,1750651851499,-151.0,0.00022,7]
[367080356,1750651851508,-158.529376,0.00022,7]
[367080357,1750651851517,-154.2994,0.00022,7]
[367080359,1750651851527,-152.016174,0.00022,7]
[367080361,1750651851536,-153.221812,0.00022,7]
[367080362,1750651851546,-1064.59846,0.00022,7]
[367080364,1750651851556,-1064.59846,0.00022,7]
[367080366,1750651851565,-155.719176,0.00022,7]
[367080368,1750651851575,-151.0,0.00022,7]
[367080369,1750651851584,-151.0,0.00022,7]
[367080371,1750651851594,-501.785232,0.00022,7]
[367080372,1750651851604,-501.785232,0.00022,7]
[367080374,1750651851613,-751.637217,0.00022,7]
[367080376,1750651851623,-751.637217,0.00022,7]
[367080377,1750651851632,-302.918499,0.00022,7]
[367080379,1750651851641,-302.918499,0.00022,7]
[367080381,1750651851651,-152.795637,0.00022,7]
[367080382,1750651851660,-151.0,0.00022,7]
[367080384,1750651851669,-151.0,0.00022,7]
[367080385,1750651851678,-151.0,0.00022,7]
[367080387,1750651851688,-655.781794,0.00022,7]
[367080389,1750651851698,-655.781794,0.00022,7]
[367080391,1750651851708,-504.0,0.00022,2]
[367080392,1750651851717,-160.0,0.00022009,2]
[367080394,1750651851727,-12553.69357174,0.00022009,2]
[367080396,1750651851736,-230.18214666,0.00022009,2]
[367080397,1750651851745,-213.63163053,0.00022009,2]
[367080399,1750651851754,-836.70095952,0.00022009,2]
[367080401,1750651851763,-425.08510397,0.00022009,2]
[367080403,1750651851773,-160.0,0.00022009,2]
[367080404,1750651851782,-160.0,0.00022009,2]
[367080406,1750651851793,-846.53928378,0.00022009,2]
[367080408,1750651851802,-152.827679,0.00022025,7]
[367080409,1750651851811,-151.0,0.00022027,2]
[367080411,1750651851821,-512.36969052,0.00022027,2]
[367080413,1750651851830,-500.0,0.00022027,2]
[367080415,1750651851839,-500.0,0.00022027,2]
[367080416,1750651851848,-500.0,0.00022027,2]
[367080418,1750651851857,-591.12848526,0.00022027,2]
[367080420,1750651851866,-500.0,0.00022027,2]
[367080422,1750651851875,-500.0,0.00022027,2]
[367080423,1750651851884,-500.0,0.00022027,2]
[367080425,1750651851894,-500.0,0.00022027,2]
[367080427,1750651851903,-500.0,0.00022027,2]
[367080429,1750651851913,-500.0,0.00022027,2]
[367080430,1750651851922,-158.02093256,0.00022027,2]
[367080432,1750651851931,-500.05545305,0.00022027,2]
[367080434,1750651851940,-599.0,0.00022027,2]
[367080436,1750651851949,-500.0,0.00022027,2]
[367080437,1750651851959,-500.0,0.00022054,2]
[367080439,1750651851968,-500.0,0.00022054,2]
[367080441,1750651851977,-599.0,0.00022054,2]
[367080443,1750651851986,-500.0,0.00022054,2]
[367080444,1750651851996,-791.218,0.00022074,2]
[367080446,1750651852005,-2161.0,0.00022074,2]
[367080448,1750651852014,-500.0,0.00022081,2]
[367080450,1750651852023,-414.16270588,0.00022081,2]
[367080452,1750651852033,-599.0,0.00022081,2]
[367080453,1750651852043,-500.0,0.00022081,2]
[367080455,1750651852053,-173.023809,0.00022091,7]
[367080457,1750651852066,-151.0,0.00022091,7]
[367080459,1750651852075,-500.0,0.00022109,2]
[367080461,1750651852086,-599.0,0.00022109,2]
[367080462,1750651852095,-500.0,0.00022109,2]
[367080464,1750651852105,-500.0,0.00022136,2]
[367080466,1750651852114,-599.0,0.00022136,2]
[367080468,1750651852123,-500.0,0.00022136,2]
[367080470,1750651852133,-500.0,0.00022164,2]
[367080471,1750651852142,-599.0,0.00022164,2]
[367080473,1750651852152,-500.0,0.00022164,2]
[367080475,1750651852161,-151.0,0.00022164,7]
[367080477,1750651852170,-151.0,0.00022164,7]
[367080479,1750651852179,-151.0,0.00022164,7]
[367080480,1750651852189,-151.0,0.00022164,2]
[367080482,1750651852198,-227.06283,0.00022164,2]
[367080484,1750651852207,-151.0,0.00022164,7]
[367080486,1750651852216,-325.91250114,0.00022173,2]
[367080487,1750651852225,-500.0,0.00022173,2]
[367080489,1750651852234,-503.20172477,0.00022173,2]
[367080490,1750651852243,-198.40910396,0.00022173,2]
[367080492,1750651852253,-500.0,0.00022173,2]
[367080494,1750651852262,-500.0,0.00022173,2]
[367080496,1750651852272,-500.0,0.00022173,2]
[367080498,1750651852282,-500.0,0.00022173,2]
[367080500,1750651852299,-500.0,0.00022173,2]
[367080501,1750651852308,-500.0,0.00022173,2]
[367080503,1750651852318,-500.0,0.00022173,2]
[367080505,1750651852328,-500.0,0.00022173,2]
[367080507,1750651852337,-508.31677155,0.00022173,2]
[367080509,1750651852347,-501.69489864,0.00022173,2]
[367080510,1750651852356,-500.0,0.00022173,2]
[367080512,1750651852365,-500.0,0.00022173,2]
[367080514,1750651852375,-600.0,0.00022173,2]
[367080516,1750651852384,-500.0,0.00022173,2]
[367080518,1750651852394,-500.0,0.00022173,2]
[367080519,1750651852404,-500.0,0.00022173,2]
[367080536,1750651852596,-500.0,0.00022173,2]
[367080538,1750651852619,-500.0,0.00022173,2]
[367080540,1750651852630,-501.18146958,0.00022173,2]
[367080542,1750651852640,-500.0,0.00022173,2]
[367080543,1750651852649,-500.0,0.00022173,2]
[367080545,1750651852659,-500.0,0.00022173,2]
[367080547,1750651852670,-500.0,0.00022173,2]
[367080549,1750651852680,-500.0,0.00022173,2]
[367080550,1750651852689,-500.0,0.00022173,2]
[367080552,1750651852699,-500.0,0.00022173,2]
[367080554,1750651852709,-500.0,0.00022173,2]
[367080556,1750651852719,-500.0,0.00022173,2]
[367080558,1750651852729,-501.00140463,0.00022173,2]
[367080559,1750651852738,-500.0,0.00022173,2]
[367080561,1750651852748,-500.0,0.00022173,2]
[367080563,1750651852760,-312.0,0.00022191,2]
[367080565,1750651852770,-599.0,0.00022191,2]
[367080567,1750651852780,-500.0,0.00022191,2]
[367080568,1750651852790,-460.0,0.00022191,2]
[367080570,1750651852800,-460.0,0.00022191,2]
[367080572,1750651852810,-460.0,0.00022191,2]
[367080574,1750651852821,-460.0,0.00022191,2]
[367080575,1750651852830,-460.0,0.00022191,2]
[367080577,1750651852840,-973.79,0.00022191,2]
[367080579,1750651852850,-460.0,0.00022191,2]
[367080581,1750651852860,-460.0,0.00022191,2]
[367080582,1750651852869,-460.0,0.00022191,2]
[367080584,1750651852879,-825.64,0.00022191,2]
[367080586,1750651852888,-460.0,0.00022191,2]
[367080588,1750651852897,-460.0,0.00022191,2]
[367080590,1750651852907,-460.0,0.00022191,2]
[367080591,1750651852916,-460.0,0.00022191,2]
[367080593,1750651852926,-460.0,0.00022191,2]
[367080595,1750651852936,-222.78559439,0.00022191,2]
[367080597,1750651852946,-487.9,0.00022191,2]
[367080598,1750651852955,-460.0,0.00022191,2]
[367080600,1750651852965,-460.0,0.00022191,2]
[367080602,1750651852975,-460.0,0.00022191,2]
[367080604,1750651852984,-460.0,0.00022191,2]
[367080606,1750651852994,-460.0,0.00022191,2]
[367080608,1750651853005,-460.0,0.00022191,2]
[367080609,1750651853015,-460.0,0.00022191,2]
[367080611,1750651853024,-460.0,0.00022191,2]
[367080613,1750651853033,-460.0,0.00022191,2]
[367080615,1750651853044,-460.0,0.00022191,2]
[367080616,1750651853055,-578.19,0.00022191,2]
[367080618,1750651853066,-460.0,0.00022191,2]
[367080620,1750651853076,-460.0,0.00022191,2]
[367080622,1750651853085,-460.0,0.00022191,2]
[367080624,1750651853095,-460.0,0.00022191,2]
[367080625,1750651853103,-460.0,0.00022191,2]
[367080627,1750651853113,-460.0,0.00022191,2]
[367080629,1750651853123,-490.864577,0.00022191,2]
[367080631,1750651853132,-460.0,0.00022191,2]
[367080633,1750651853142,-958.31,0.00022191,2]
[367080634,1750651853151,-746.86,0.00022191,2]
[367080636,1750651853162,-460.0,0.00022191,2]
[367080638,1750651853171,-460.0,0.00022191,2]
[367080640,1750651853181,-370.0,0.00022191,2]
[367080642,1750651853190,-460.0,0.00022191,2]
[367080643,1750651853200,-460.0,0.00022191,2]
[367080645,1750651853209,-460.0,0.00022191,2]
[367080647,1750651853220,-460.0,0.00022191,2]
[367080649,1750651853229,-432.24299732,0.00022191,2]
[367080651,1750651853239,-151.0,0.00022191,7]
[367080652,1750651853248,-151.0,0.00022191,7]
[367080654,1750651853257,-410.98299414,0.00022191,2]
[367080656,1750651853267,-460.0,0.00022191,2]
[367080658,1750651853277,-517.82,0.00022191,2]
[367080660,1750651853287,-513.94,0.00022191,2]
[367080661,1750651853296,-460.0,0.00022191,2]
[367080663,1750651853306,-151.0,0.00022191,7]
[367080665,1750651853316,-151.0,0.00022191,7]
[367080667,1750651853325,-460.0,0.00022191,2]
[367080669,1750651853334,-151.0,0.00022191,7]
[367080670,1750651853343,-340.25335158,0.00022191,2]
[367080672,1750651853353,-531.14580334,0.00022191,2]
[367080674,1750651853363,-460.0,0.00022191,2]
[367080676,1750651853372,-228.58566417,0.00022191,7]
[367080677,1750651853382,-460.0,0.00022191,2]
[367080679,1750651853391,-465.61923004,0.00022191,2]
[367080681,1750651853401,-175.03931805,0.00022191,2]
[367080683,1750651853410,-460.0,0.00022191,2]
[367080685,1750651853420,-288.64732531,0.00022191,2]
[367080686,1750651853429,-460.0,0.00022191,2]
[367080688,1750651853439,-460.0,0.00022191,2]
[367080690,1750651853449,-768.63,0.00022191,2]
[367080692,1750651853459,-460.0,0.00022191,2]
[367080694,1750651853469,-460.0,0.00022191,2]
[367080695,1750651853479,-460.0,0.00022191,2]
[367080697,1750651853489,-460.0,0.00022191,2]
[367080699,1750651853499,-460.0,0.00022191,2]
[367080701,1750651853508,-295.12525167,0.00022191,2]
[367080702,1750651853518,-460.0,0.00022191,2]
[367080704,1750651853527,-460.0,0.00022191,2]
[367080706,1750651853538,-335.76765779,0.00022191,2]
[367080708,1750651853547,-460.0,0.00022191,2]
[367080710,1750651853557,-460.0,0.00022191,2]
[367080711,1750651853566,-460.0,0.00022191,2]
[367080713,1750651853576,-460.0,0.00022191,2]
[367080715,1750651853586,-743.97,0.00022191,2]
[367080717,1750651853597,-525.44,0.00022191,2]
[367080718,1750651853606,-460.0,0.00022191,2]
[367080720,1750651853615,-460.0,0.00022191,2]
[367080722,1750651853625,-500.0,0.00022191,2]
[367080724,1750651853635,-460.0,0.00022191,2]
[367080725,1750651853645,-402.00486042,0.00022191,2]
[367080727,1750651853655,-460.0,0.00022191,2]
[367080729,1750651853664,-617.19,0.00022191,2]
[367080731,1750651853674,-460.0,0.00022191,2]
[367080733,1750651853684,-460.0,0.00022191,2]
[367080734,1750651853694,-460.0,0.00022191,2]
[367080736,1750651853703,-460.0,0.00022191,2]
[367080738,1750651853713,-460.0,0.00022191,2]
[367080740,1750651853723,-460.0,0.00022191,2]
[367080742,1750651853733,-460.0,0.00022191,2]
[367080743,1750651853743,-460.0,0.00022191,2]
[367080745,1750651853754,-430.0,0.00022191,2]
[367080747,1750651853764,-472.31,0.00022191,2]
[367080749,1750651853775,-800.94,0.00022191,2]
[367080751,1750651853785,-460.0,0.00022191,2]
[367080752,1750651853796,-460.0,0.00022191,2]
[367080754,1750651853806,-449.40386311,0.00022191,2]
[367080756,1750651853816,-358.63795307,0.00022191,2]
[367080758,1750651853826,-560.66925553,0.00022191,2]
[367080760,1750651853836,-1870.5,0.00022191,2]
[367080761,1750651853846,-545.12256686,0.00022191,2]
[367080763,1750651853856,-151.0,0.00022191,7]
[367080765,1750651853866,-151.0,0.00022191,7]
[367080767,1750651853876,-151.0,0.00022191,7]
[367080769,1750651853886,-153.774652,0.00022191,7]
[367080770,1750651853896,-460.0,0.00022191,2]
[367080772,1750651853906,-151.0,0.00022191,7]
[367080774,1750651853916,-151.0,0.00022191,7]
[367080776,1750651853926,-460.0,0.00022191,2]
[367080778,1750651853937,-460.0,0.00022191,2]
[367080780,1750651853947,-151.0,0.00022191,2]
[367080781,1750651853957,-151.0,0.00022191,2]
[367080783,1750651853967,-835.17,0.00022191,2]
[367080785,1750651853977,-704.62,0.00022191,2]
[367080787,1750651853987,-604.71,0.00022191,2]
[367080788,1750651853996,-460.0,0.00022191,2]
[367080790,1750651854006,-808.39,0.00022191,2]
[367080792,1750651854017,-460.0,0.00022191,2]
[367080794,1750651854027,-460.0,0.00022191,2]
[367080796,1750651854036,-460.0,0.00022191,2]
[367080797,1750651854046,-346.6904715,0.00022191,2]
[367080799,1750651854058,-460.0,0.00022191,2]
[367080801,1750651854069,-460.0,0.00022191,2]
[367080803,1750651854079,-460.0,0.00022191,2]
[367080805,1750651854089,-151.0,0.00022191,7]
[367080806,1750651854098,-151.0,0.00022191,7]
[367080808,1750651854110,-412.64024,0.00022191,7]
[367080810,1750651854119,-412.64024,0.00022191,7]
[367080812,1750651854130,-460.0,0.00022191,2]
[367080814,1750651854141,-460.0,0.00022191,2]
[367080815,1750651854151,-412.64024,0.00022191,7]
[367080817,1750651854161,-412.64024,0.00022191,7]
[367080819,1750651854171,-460.0,0.00022191,2]
[367080821,1750651854181,-460.0,0.00022191,2]
[367080822,1750651854190,-460.0,0.00022191,2]
[367080824,1750651854200,-460.0,0.00022191,2]
[367080826,1750651854209,-460.0,0.00022191,2]
[367080828,1750651854220,-460.0,0.00022191,2]
[367080830,1750651854229,-460.0,0.00022191,2]
[367080832,1750651854239,-460.0,0.00022191,2]
[367080834,1750651854249,-460.0,0.00022191,2]
[367080836,1750651854258,-460.0,0.00022191,2]
[367080838,1750651854267,-460.0,0.00022191,2]
[367080840,1750651854277,-669.73,0.00022191,2]
[367080842,1750651854287,-460.0,0.00022191,2]
[367080844,1750651854298,-429.04169078,0.00022191,2]
[367080846,1750651854307,-460.0,0.00022191,2]
[367080848,1750651854317,-460.0,0.00022191,2]
[367080850,1750651854327,-480.58439964,0.00022191,2]
[367080852,1750651854337,-460.0,0.00022191,2]
[367080854,1750651854346,-460.52266667,0.00022191,2]
[367080855,1750651854355,-460.0,0.00022191,2]
[367080856,1750651854365,-460.0,0.00022191,2]
[367080857,1750651854374,-588.75,0.00022191,2]
[367080858,1750651854383,-460.0,0.00022191,2]
[367080859,1750651854392,-463.98267855,0.00022191,2]
[367080860,1750651854402,-460.0,0.00022191,2]
[367080861,1750651854411,-460.0,0.00022191,2]
[367080862,1750651854420,-460.0,0.00022191,2]
[367080863,1750651854429,-460.0,0.00022191,2]
[367080864,1750651854438,-460.0,0.00022191,2]
[367080865,1750651854447,-460.0,0.00022191,2]
[367080866,1750651854456,-460.0,0.00022191,2]
[367080867,1750651854465,-460.0,0.00022191,2]
[367080868,1750651854474,-902.37,0.00022191,2]
[367080869,1750651854483,-460.0,0.00022191,2]
[367080870,1750651854492,-1206.37,0.00022191,2]
[367080871,1750651854502,-434.8146663,0.00022191,2]
[367080872,1750651854511,-833.41,0.00022191,2]
[367080873,1750651854521,-460.0,0.00022191,2]
[367080874,1750651854530,-460.0,0.00022191,2]
[367080875,1750651854539,-460.0,0.00022191,2]
[367080876,1750651854549,-460.0,0.00022191,2]
[367080877,1750651854558,-460.0,0.00022191,2]
[367080878,1750651854567,-151.0,0.00022191,7]
[367080879,1750651854576,-230.809316,0.00022191,7]
[367080880,1750651854585,-460.0,0.00022191,2]
[367080881,1750651854594,-150.67399097,0.00022191,2]
[367080882,1750651854605,-460.0,0.00022191,2]
[367080883,1750651854614,-460.0,0.00022191,2]
[367080884,1750651854624,-460.0,0.00022191,2]
[367080885,1750651854633,-460.0,0.00022191,2]
[367080886,1750651854642,-927.66,0.00022191,2]
[367080887,1750651854651,-505.62,0.00022191,2]
[367080888,1750651854660,-1301.36,0.00022191,2]
[367080889,1750651854670,-545.68,0.00022191,2]
[367080890,1750651854681,-460.0,0.00022191,2]
[367080891,1750651854692,-1607.79,0.00022191,2]
[367080892,1750651854702,-460.0,0.00022191,2]
[367080893,1750651854711,-460.0,0.00022191,2]
[367080894,1750651854720,-460.0,0.00022191,2]
[367080895,1750651854729,-460.0,0.00022191,2]
[367080896,1750651854738,-795.75,0.00022191,2]
[367080897,1750651854747,-460.0,0.00022191,2]
[367080898,1750651854757,-460.0,0.00022191,2]
[367080899,1750651854768,-161.74308903,0.00022191,2]
[367080900,1750651854777,-460.0,0.00022191,2]
[367080901,1750651854787,-1036.67,0.00022191,2]
[367080902,1750651854797,-460.0,0.00022191,2]
[367080903,1750651854807,-460.61863843,0.00022191,2]
[367080905,1750651854816,-460.0,0.00022191,2]
[367080906,1750651854826,-460.0,0.00022191,2]
[367080907,1750651854835,-2104.23,0.00022191,2]
[367080908,1750651854844,-460.0,0.00022191,2]
[367080910,1750651854854,-460.0,0.00022191,2]
[367080911,1750651854863,-460.0,0.00022191,2]
[367080912,1750651854872,-493.7,0.00022191,2]
[367080914,1750651854881,-1344.93,0.00022191,2]
[367080916,1750651854890,-460.0,0.00022191,2]
[367080918,1750651854899,-1011.0,0.00022191,2]
[367080920,1750651854909,-460.0,0.00022191,2]
[367080922,1750651854918,-469.57090328,0.00022191,2]
[367080924,1750651854927,-460.0,0.00022191,2]
[367080926,1750651854937,-489.95,0.00022191,2]
[367080928,1750651854946,-460.0,0.00022191,2]
[367080930,1750651854956,-460.0,0.00022191,2]
[367080932,1750651854965,-460.0,0.00022191,2]
[367080934,1750651854974,-714.12,0.00022191,2]